[Event "*** Titled Tuesday Blitz"]
[Site "Chess.com"]
[Date "2020.12.29"]
[Round "1"]
[White "nobodyperfect13"]
[Black "Babujj"]
[Result "0-1"]
[WhiteElo "2202"]
[BlackElo "2533"]
[TimeControl "180+1"]
[EndTime "10:09:06 PST"]
[Termination "Babujj won by checkmate"]

1. c4 {[%clk 0:02:58.3]} 1... e5 {[%clk 0:02:59.3]} 2. Nc3 {[%clk 0:02:57.1]}
2... Nc6 {[%clk 0:02:59.4]} 3. g3 {[%clk 0:02:56.9]} 3... g6 {[%clk 0:02:59.6]}
4. Bg2 {[%clk 0:02:57.2]} 4... Bg7 {[%clk 0:02:59.9]} 5. Nf3 {[%clk 0:02:56.4]}
5... Nge7 {[%clk 0:02:59.9]} 6. d3 {[%clk 0:02:54.8]} 6... O-O {[%clk
0:02:59.8]} 7. O-O {[%clk 0:02:54.8]} 7... d5 {[%clk 0:02:57]} 8. cxd5 {[%clk
0:02:53.4]} 8... Nxd5 {[%clk 0:02:57.9]} 9. Nxe5 {[%clk 0:02:49.8]} 9... Nxc3
{[%clk 0:02:56.2]} 10. Nxc6 {[%clk 0:02:49.8]} 10... Nxd1 {[%clk 0:02:53.8]} 11.
Nxd8 {[%clk 0:02:49.7]} 11... Nxb2 {[%clk 0:02:53]} 12. Bxb2 {[%clk 0:02:38.8]}
12... Bxb2 {[%clk 0:02:50.6]} 13. Rab1 {[%clk 0:02:32.6]} 13... Rxd8 {[%clk
0:02:32]} 14. Rxb2 {[%clk 0:02:31.7]} 14... c6 {[%clk 0:02:31.9]} 15. Rc1 {[%clk
0:02:17.8]} 15... Re8 {[%clk 0:02:25.9]} 16. e3 {[%clk 0:02:15.6]} 16... Re7
{[%clk 0:02:25.7]} 17. d4 {[%clk 0:02:14.7]} 17... Be6 {[%clk 0:02:25.2]} 18. a4
{[%clk 0:02:11.9]} 18... Rd8 {[%clk 0:02:17.8]} 19. a5 {[%clk 0:02:10.6]} 19...
a6 {[%clk 0:02:00.2]} 20. Rcb1 {[%clk 0:01:52.6]} 20... Rdd7 {[%clk 0:01:48.3]}
21. h4 {[%clk 0:01:47.2]} 21... Bf5 {[%clk 0:01:45.8]} 22. Rc1 {[%clk
0:01:45.8]} 22... Be4 {[%clk 0:01:45.7]} 23. Bh3 {[%clk 0:01:44.4]} 23... f5
{[%clk 0:01:43.9]} 24. Bg2 {[%clk 0:01:38.5]} 24... Rd5 {[%clk 0:01:38.3]} 25.
Bxe4 {[%clk 0:01:35.3]} 25... fxe4 {[%clk 0:01:39.2]} 26. Rc5 {[%clk 0:01:17]}
26... Rxc5 {[%clk 0:01:27.7]} 27. dxc5 {[%clk 0:01:16.7]} 27... Kf7 {[%clk
0:01:28.2]} 28. Rd2 {[%clk 0:01:07.6]} 28... h5 {[%clk 0:01:10.4]} 29. Rd6
{[%clk 0:01:04.4]} 29... Re5 {[%clk 0:01:08.4]} 30. Rd7+ {[%clk 0:01:04]} 30...
Ke6 {[%clk 0:01:05.5]} 31. Rxb7 {[%clk 0:01:03.6]} 31... Rxc5 {[%clk 0:01:05.6]}
32. Rb6 {[%clk 0:01:02.8]} 32... Rxa5 {[%clk 0:01:04.9]} 33. Rxc6+ {[%clk
0:01:02.7]} 33... Kf5 {[%clk 0:01:05.3]} 34. Kg2 {[%clk 0:01:00.3]} 34... Ra2
{[%clk 0:01:04.5]} 35. Rc5+ {[%clk 0:00:59]} 35... Kf6 {[%clk 0:01:03.3]} 36.
Rc6+ {[%clk 0:00:59.5]} 36... Kg7 {[%clk 0:00:47.5]} 37. Rc4 {[%clk 0:00:56.1]}
37... a5 {[%clk 0:00:47.8]} 38. Rd4 {[%clk 0:00:56.6]} 38... a4 {[%clk
0:00:48.1]} 39. Rxe4 {[%clk 0:00:56.8]} 39... a3 {[%clk 0:00:48.6]} 40. Ra4
{[%clk 0:00:55.2]} 40... Kf6 {[%clk 0:00:47.9]} 41. Kf3 {[%clk 0:00:54.9]} 41...
Ra1 {[%clk 0:00:47.6]} 42. Ke4 {[%clk 0:00:54.6]} 42... a2 {[%clk 0:00:46.9]}
43. Ra6+ {[%clk 0:00:53.9]} 43... Kg7 {[%clk 0:00:47.2]} 44. f3 {[%clk
0:00:48.2]} 44... Kf7 {[%clk 0:00:44.6]} 45. Kf4 {[%clk 0:00:47.5]} 45... Kg7
{[%clk 0:00:39.2]} 46. e4 {[%clk 0:00:47.8]} 46... Kf7 {[%clk 0:00:38.2]} 47.
Ke5 {[%clk 0:00:46.3]} 47... Rg1 {[%clk 0:00:35.6]} 48. Ra7+ {[%clk 0:00:44]}
48... Ke8 {[%clk 0:00:34.8]} 49. Rxa2 {[%clk 0:00:44.6]} 49... Rxg3 {[%clk
0:00:34.1]} 50. Ke6 {[%clk 0:00:39]} 50... Kf8 {[%clk 0:00:31.1]} 51. e5 {[%clk
0:00:35.3]} 51... Rxf3 {[%clk 0:00:29.5]} 52. Ra8+ {[%clk 0:00:35]} 52... Kg7
{[%clk 0:00:24]} 53. Ke7 {[%clk 0:00:35.2]} 53... Rf7+ {[%clk 0:00:22.6]} 54.
Ke6 {[%clk 0:00:34.8]} 54... Rf4 {[%clk 0:00:21.8]} 55. Ra7+ {[%clk 0:00:34]}
55... Kh6 {[%clk 0:00:21.7]} 56. Kd6 {[%clk 0:00:30.9]} 56... Rxh4 {[%clk
0:00:21.2]} 57. e6 {[%clk 0:00:31.4]} 57... Rd4+ {[%clk 0:00:21.2]} 58. Ke5
{[%clk 0:00:31.4]} 58... Rd1 {[%clk 0:00:20.9]} 59. e7 {[%clk 0:00:31.9]} 59...
Kg5 {[%clk 0:00:20.6]} 60. Ra8 {[%clk 0:00:30.5]} 60... Re1+ {[%clk 0:00:20]}
61. Kd6 {[%clk 0:00:30.9]} 61... Rd1+ {[%clk 0:00:20.2]} 62. Ke6 {[%clk
0:00:31]} 62... Re1+ {[%clk 0:00:20.4]} 63. Kd6 {[%clk 0:00:31.2]} 63... Rd1+
{[%clk 0:00:17.9]} 64. Kc5 {[%clk 0:00:31.3]} 64... Rc1+ {[%clk 0:00:18.2]} 65.
Kd4 {[%clk 0:00:31.4]} 65... Rd1+ {[%clk 0:00:18]} 66. Ke3 {[%clk 0:00:31.6]}
66... Re1+ {[%clk 0:00:17.9]} 67. Kf2 {[%clk 0:00:31.9]} 67... Rxe7 {[%clk
0:00:18.8]} 68. Ra6 {[%clk 0:00:32.2]} 68... Rf7+ {[%clk 0:00:18.5]} 69. Kg2
{[%clk 0:00:31.8]} 69... h4 {[%clk 0:00:18.7]} 70. Ra5+ {[%clk 0:00:31.9]} 70...
Rf5 {[%clk 0:00:19]} 71. Ra8 {[%clk 0:00:32.1]} 71... Kg4 {[%clk 0:00:19.1]} 72.
Ra4+ {[%clk 0:00:31.8]} 72... Rf4 {[%clk 0:00:19.4]} 73. Ra8 {[%clk 0:00:31.4]}
73... h3+ {[%clk 0:00:19.4]} 74. Kh2 {[%clk 0:00:31.5]} 74... Rf2+ {[%clk
0:00:19.6]} 75. Kg1 {[%clk 0:00:31]} 75... Kg3 {[%clk 0:00:19.6]} 76. Ra3+
{[%clk 0:00:26.1]} 76... Rf3 {[%clk 0:00:19.8]} 77. Ra1 {[%clk 0:00:26.3]} 77...
g5 {[%clk 0:00:20.1]} 78. Kh1 {[%clk 0:00:25.2]} 78... g4 {[%clk 0:00:20.6]} 79.
Rg1+ {[%clk 0:00:24.9]} 79... Kh4 {[%clk 0:00:20.5]} 80. Ra1 {[%clk 0:00:25.3]}
80... Rf2 {[%clk 0:00:20.7]} 81. Ra8 {[%clk 0:00:22.3]} 81... Rf1+ {[%clk
0:00:18.7]} 82. Kh2 {[%clk 0:00:21.5]} 82... g3# {[%clk 0:00:19.6]} 0-1

[Event "*** Titled Tuesday Blitz"]
[Site "Chess.com"]
[Date "2020.12.29"]
[Round "1"]
[White "j2806"]
[Black "Love_craft"]
[Result "0-1"]
[WhiteElo "2002"]
[BlackElo "2482"]
[TimeControl "180+1"]
[EndTime "10:09:19 PST"]
[Termination "Love_craft won by resignation"]

1. e4 {[%clk 0:02:58.9]} 1... g6 {[%clk 0:02:59.9]} 2. d4 {[%clk 0:02:58.5]}
2... Bg7 {[%clk 0:03:00.1]} 3. Be3 {[%clk 0:02:56.8]} 3... d6 {[%clk 0:03:00]}
4. Nc3 {[%clk 0:02:57.3]} 4... a6 {[%clk 0:03:00.3]} 5. f3 {[%clk 0:02:57.8]}
5... b5 {[%clk 0:03:00.4]} 6. Qd2 {[%clk 0:02:58.5]} 6... Bb7 {[%clk 0:03:00.4]}
7. O-O-O {[%clk 0:02:59.1]} 7... h5 {[%clk 0:03:00.3]} 8. g3 {[%clk 0:02:52.3]}
8... Nd7 {[%clk 0:02:59.6]} 9. h3 {[%clk 0:02:52.4]} 9... Rc8 {[%clk 0:02:59.2]}
10. Bg2 {[%clk 0:02:46.3]} 10... c5 {[%clk 0:02:58.6]} 11. Nge2 {[%clk
0:02:37.9]} 11... Nb6 {[%clk 0:02:47.6]} 12. dxc5 {[%clk 0:02:28.9]} 12... Nc4
{[%clk 0:02:47.5]} 13. Qd3 {[%clk 0:02:22.5]} 13... Nxe3 {[%clk 0:02:47.5]} 14.
Qxe3 {[%clk 0:02:19.4]} 14... Rxc5 {[%clk 0:02:47.4]} 15. Qxc5 {[%clk
0:02:17.5]} 15... dxc5 {[%clk 0:02:46.7]} 16. Rxd8+ {[%clk 0:02:18.1]} 16...
Kxd8 {[%clk 0:02:47.6]} 17. Rd1+ {[%clk 0:02:17.6]} 17... Kc7 {[%clk 0:02:44.8]}
18. Nd5+ {[%clk 0:02:17.9]} 18... Bxd5 {[%clk 0:02:44.8]} 19. Rxd5 {[%clk
0:02:16]} 19... c4 {[%clk 0:02:44.5]} 20. c3 {[%clk 0:02:04.4]} 20... e6 {[%clk
0:02:44]} 21. Rd1 {[%clk 0:02:02.2]} 21... Ne7 {[%clk 0:02:44]} 22. f4 {[%clk
0:02:02.2]} 22... e5 {[%clk 0:02:43.4]} 23. fxe5 {[%clk 0:02:01.5]} 23... Bxe5
{[%clk 0:02:42.2]} 24. Kd2 {[%clk 0:01:55.5]} 24... Nc6 {[%clk 0:02:36.7]} 25.
Ke3 {[%clk 0:01:54.1]} 25... Bd6 {[%clk 0:02:35.4]} 26. Nf4 {[%clk 0:01:51.2]}
26... Bc5+ {[%clk 0:02:26.4]} 27. Ke2 {[%clk 0:01:47.1]} 27... Ne5 {[%clk
0:02:21.6]} 28. Nd5+ {[%clk 0:01:45.5]} 28... Kb7 {[%clk 0:02:17.5]} 29. b3
{[%clk 0:01:37.4]} 29... h4 {[%clk 0:02:09.4]} 30. g4 {[%clk 0:01:36.7]} 30...
Nd3 {[%clk 0:01:51.7]} 31. bxc4 {[%clk 0:01:31.1]} 31... bxc4 {[%clk 0:01:51.9]}
32. Rf1 {[%clk 0:01:27.6]} 32... Ne5 {[%clk 0:01:49.5]} 33. Rb1+ {[%clk
0:01:22]} 33... Kc6 {[%clk 0:01:49.2]} 34. Ne3 {[%clk 0:01:12.4]} 34... Bxe3
{[%clk 0:01:48]} 35. Kxe3 {[%clk 0:01:12.1]} 35... Rd8 {[%clk 0:01:48.9]} 36.
Bf1 {[%clk 0:01:09.9]} 36... g5 {[%clk 0:01:40.9]} 37. Be2 {[%clk 0:00:55.1]}
37... a5 {[%clk 0:01:36.9]} 38. Rf1 {[%clk 0:00:50.8]} 38... Rd6 {[%clk
0:01:35.2]} 39. Rf5 {[%clk 0:00:42.7]} 39... f6 {[%clk 0:01:35]} 40. Rf1 {[%clk
0:00:42.1]} 40... Kc5 {[%clk 0:01:35.2]} 41. Rb1 {[%clk 0:00:39.4]} 41... Rb6
{[%clk 0:01:11.4]} 42. Rxb6 {[%clk 0:00:38.1]} 42... Kxb6 {[%clk 0:01:12.3]} 43.
Kd4 {[%clk 0:00:38.2]} 43... Kb5 {[%clk 0:01:12.9]} 44. Bd1 {[%clk 0:00:31.5]}
44... Nd3 {[%clk 0:01:01.2]} 45. Be2 {[%clk 0:00:26.9]} 45... Ne5 {[%clk
0:00:23.2]} 46. Bd1 {[%clk 0:00:25.2]} 46... a4 {[%clk 0:00:19.3]} 47. Kd5
{[%clk 0:00:23.8]} 47... Ng6 {[%clk 0:00:11.6]} 48. Ke6 {[%clk 0:00:20.2]} 48...
Nf4+ {[%clk 0:00:11.9]} 49. Kxf6 {[%clk 0:00:20.1]} 49... Nxh3 {[%clk
0:00:12.8]} 50. Bf3 {[%clk 0:00:17.3]} 50... Ng1 {[%clk 0:00:08.4]} 51. Bh1
{[%clk 0:00:16.8]} 51... Ne2 {[%clk 0:00:04.2]} 52. e5 {[%clk 0:00:13.2]} 52...
Nxc3 {[%clk 0:00:02.4]} 53. e6 {[%clk 0:00:12.5]} 53... Ne4+ {[%clk 0:00:01.9]}
54. Ke5 {[%clk 0:00:09.8]} 54... Nc5 {[%clk 0:00:01.9]} 55. e7 {[%clk
0:00:09.2]} 55... Nd7+ {[%clk 0:00:02.1]} 56. Ke6 {[%clk 0:00:07.8]} 56... Nc5+
{[%clk 0:00:02.3]} 57. Kf7 {[%clk 0:00:07.7]} 57... c3 {[%clk 0:00:02.2]} 58.
e8=Q+ {[%clk 0:00:08.1]} 58... Kb4 {[%clk 0:00:02.1]} 59. Qe1 {[%clk 0:00:08.6]}
59... Nb3 {[%clk 0:00:01.3]} 60. axb3 {[%clk 0:00:05.9]} 60... axb3 {[%clk
0:00:02.2]} 61. Be4 {[%clk 0:00:05.3]} 61... h3 {[%clk 0:00:02.4]} 62. Kg6
{[%clk 0:00:04.2]} 62... h2 {[%clk 0:00:02.7]} 63. Kxg5 {[%clk 0:00:04.7]} 63...
b2 {[%clk 0:00:02.5]} 64. Kf5 {[%clk 0:00:04.3]} 64... Kb3 {[%clk 0:00:02.7]}
65. g5 {[%clk 0:00:04.3]} 65... c2 {[%clk 0:00:03]} 66. Bxc2+ {[%clk 0:00:04.6]}
66... Kxc2 {[%clk 0:00:03.9]} 67. Qe2+ {[%clk 0:00:04.7]} 67... Kc1 {[%clk
0:00:04.3]} 68. Qxh2 {[%clk 0:00:04.2]} 68... b1=Q+ {[%clk 0:00:04.7]} 69. Kf6
{[%clk 0:00:05.1]} 69... Qb6+ {[%clk 0:00:04.6]} 70. Kg7 {[%clk 0:00:05.3]}
70... Qd4+ {[%clk 0:00:04.4]} 71. Kg6 {[%clk 0:00:05.3]} 71... Qe4+ {[%clk
0:00:04.7]} 72. Kh6 {[%clk 0:00:03.3]} 72... Qe6+ {[%clk 0:00:03.6]} 73. g6
{[%clk 0:00:03]} 73... Qf6 {[%clk 0:00:03.2]} 74. Kh7 {[%clk 0:00:02.7]} 74...
Qf5 {[%clk 0:00:02.6]} 75. Qh6+ {[%clk 0:00:02.7]} 75... Kb1 {[%clk 0:00:02.3]}
76. Qf8 {[%clk 0:00:02.8]} 76... Qxf8 {[%clk 0:00:01.9]} 77. g7 {[%clk
0:00:02.7]} 77... Qf5+ {[%clk 0:00:02.4]} 78. Kh8 {[%clk 0:00:03.2]} 78... Qh5+
{[%clk 0:00:02.4]} 79. Kg8 {[%clk 0:00:03.3]} 79... Kc2 {[%clk 0:00:03.3]} 80.
Kf8 {[%clk 0:00:02.9]} 80... Qf5+ {[%clk 0:00:04.2]} 81. Kg8 {[%clk 0:00:03.2]}
81... Kd3 {[%clk 0:00:03.7]} 82. Kh8 {[%clk 0:00:03.8]} 82... Qh5+ {[%clk
0:00:04.1]} 83. Kg8 {[%clk 0:00:04.6]} 83... Ke4 {[%clk 0:00:04.7]} 84. Kf8
{[%clk 0:00:04.4]} 84... Qf5+ {[%clk 0:00:05.6]} 85. Kg8 {[%clk 0:00:04.9]}
85... Ke5 {[%clk 0:00:05.4]} 86. Kh8 {[%clk 0:00:04.9]} 86... Qh5+ {[%clk
0:00:06.1]} 87. Kg8 {[%clk 0:00:05.3]} 87... Kf6 {[%clk 0:00:06.2]} 0-1

[Event "*** Titled Tuesday Blitz"]
[Site "Chess.com"]
[Date "2020.12.29"]
[Round "1"]
[White "GoltsevDmitry2000"]
[Black "eCztery"]
[Result "1-0"]
[WhiteElo "2701"]
[BlackElo "2367"]
[TimeControl "180+1"]
[EndTime "10:09:32 PST"]
[Termination "GoltsevDmitry2000 won by checkmate"]

1. e4 {[%clk 0:03:00.9]} 1... c5 {[%clk 0:02:59.6]} 2. Nf3 {[%clk 0:03:01.1]}
2... g6 {[%clk 0:02:58.4]} 3. d3 {[%clk 0:02:56.1]} 3... Nc6 {[%clk 0:02:58.2]}
4. Nbd2 {[%clk 0:02:55.1]} 4... Bg7 {[%clk 0:02:58.1]} 5. g3 {[%clk 0:02:54.8]}
5... d5 {[%clk 0:02:57.8]} 6. Bg2 {[%clk 0:02:54.6]} 6... Nf6 {[%clk 0:02:54.9]}
7. O-O {[%clk 0:02:53]} 7... dxe4 {[%clk 0:02:52.3]} 8. dxe4 {[%clk 0:02:53.7]}
8... O-O {[%clk 0:02:51.5]} 9. Qe2 {[%clk 0:02:53.6]} 9... Bg4 {[%clk 0:02:51]}
10. c3 {[%clk 0:02:53.4]} 10... Qd7 {[%clk 0:02:38.5]} 11. Qe3 {[%clk
0:02:43.4]} 11... b6 {[%clk 0:02:25.7]} 12. e5 {[%clk 0:02:37.1]} 12... Nd5
{[%clk 0:02:22.6]} 13. Qe2 {[%clk 0:02:32.2]} 13... Nxe5 {[%clk 0:02:06.6]} 14.
Nxe5 {[%clk 0:02:28]} 14... Bxe2 {[%clk 0:02:04.7]} 15. Nxd7 {[%clk 0:02:27.4]}
15... Bxf1 {[%clk 0:02:04.4]} 16. Nxf1 {[%clk 0:02:19.1]} 16... Rfd8 {[%clk
0:01:52.3]} 17. Bxd5 {[%clk 0:01:58.2]} 17... Rac8 {[%clk 0:01:52.6]} 18. Be3
{[%clk 0:01:34.3]} 18... Rxd7 {[%clk 0:01:51.1]} 19. Bc4 {[%clk 0:01:32.2]}
19... Rcd8 {[%clk 0:01:50.1]} 20. Be2 {[%clk 0:01:30.9]} 20... e5 {[%clk
0:01:46]} 21. a4 {[%clk 0:01:16.9]} 21... a5 {[%clk 0:01:41.4]} 22. Rb1 {[%clk
0:01:13.4]} 22... Kf8 {[%clk 0:01:32.7]} 23. b4 {[%clk 0:01:12.9]} 23... axb4
{[%clk 0:01:28.2]} 24. cxb4 {[%clk 0:01:13.8]} 24... cxb4 {[%clk 0:01:19.6]} 25.
Rxb4 {[%clk 0:01:14.7]} 25... Kg8 {[%clk 0:01:16.2]} 26. Rxb6 {[%clk 0:01:14]}
26... Ra8 {[%clk 0:01:13.6]} 27. Bb5 {[%clk 0:01:09.8]} 27... Rd1 {[%clk
0:01:11]} 28. Kg2 {[%clk 0:01:05.2]} 28... Bf8 {[%clk 0:01:10.5]} 29. Rb7 {[%clk
0:01:02.3]} 29... Ra1 {[%clk 0:00:59.4]} 30. Nd2 {[%clk 0:01:00.8]} 30... R1xa4
{[%clk 0:00:58.4]} 31. Bxa4 {[%clk 0:00:57.1]} 31... Rxa4 {[%clk 0:00:59.2]} 32.
Nf3 {[%clk 0:00:57.5]} 32... f6 {[%clk 0:00:58.7]} 33. Ne1 {[%clk 0:00:54.6]}
33... h5 {[%clk 0:00:57.7]} 34. Nd3 {[%clk 0:00:53.8]} 34... h4 {[%clk
0:00:57.9]} 35. Nc5 {[%clk 0:00:51.3]} 35... Bxc5 {[%clk 0:00:53.9]} 36. Bxc5
{[%clk 0:00:52.2]} 36... hxg3 {[%clk 0:00:54.5]} 37. hxg3 {[%clk 0:00:51.8]}
37... f5 {[%clk 0:00:54.9]} 38. Bd6 {[%clk 0:00:49.5]} 38... e4 {[%clk
0:00:50.2]} 39. Be5 {[%clk 0:00:49.6]} 39... Kf8 {[%clk 0:00:49.2]} 40. Rb6
{[%clk 0:00:47.8]} 40... e3 {[%clk 0:00:42.4]} 41. fxe3 {[%clk 0:00:46.7]} 41...
g5 {[%clk 0:00:42.2]} 42. Rf6+ {[%clk 0:00:45.9]} 42... Ke7 {[%clk 0:00:42.4]}
43. Rxf5 {[%clk 0:00:46.1]} 43... g4 {[%clk 0:00:43.3]} 44. Bd4 {[%clk
0:00:44.9]} 44... Ra2+ {[%clk 0:00:41.6]} 45. Rf2 {[%clk 0:00:45.2]} 45... Ra3
{[%clk 0:00:40.2]} 46. e4 {[%clk 0:00:43.4]} 46... Ra4 {[%clk 0:00:37.5]} 47.
Rd2 {[%clk 0:00:43.2]} 47... Ke6 {[%clk 0:00:37.8]} 48. Kf2 {[%clk 0:00:41.1]}
48... Ra3 {[%clk 0:00:36.8]} 49. Be3 {[%clk 0:00:40.6]} 49... Ke5 {[%clk
0:00:37.4]} 50. Rb2 {[%clk 0:00:34.7]} 50... Kxe4 {[%clk 0:00:35.7]} 51. Rb4+
{[%clk 0:00:34.8]} 51... Kf5 {[%clk 0:00:35]} 52. Rf4+ {[%clk 0:00:34.9]} 52...
Ke5 {[%clk 0:00:33.2]} 53. Rxg4 {[%clk 0:00:34.8]} 53... Kf5 {[%clk 0:00:33.3]}
54. Rf4+ {[%clk 0:00:34.7]} 54... Ke5 {[%clk 0:00:34.2]} 55. Kf3 {[%clk
0:00:34.3]} 55... Ra1 {[%clk 0:00:34]} 56. Re4+ {[%clk 0:00:34.4]} 56... Kf5
{[%clk 0:00:34]} 57. Rb4 {[%clk 0:00:31.3]} 57... Rf1+ {[%clk 0:00:32.9]} 58.
Bf2 {[%clk 0:00:29]} 58... Ra1 {[%clk 0:00:33.8]} 59. Rb5+ {[%clk 0:00:26.6]}
59... Kg6 {[%clk 0:00:33.8]} 60. Be3 {[%clk 0:00:13.4]} 60... Ra4 {[%clk
0:00:34.2]} 61. Bf4 {[%clk 0:00:13.6]} 61... Ra3+ {[%clk 0:00:34.1]} 62. Kg4
{[%clk 0:00:14.2]} 62... Ra4 {[%clk 0:00:35]} 63. Rb6+ {[%clk 0:00:14.5]} 63...
Kf7 {[%clk 0:00:35.9]} 64. Kf5 {[%clk 0:00:14.3]} 64... Ra5+ {[%clk 0:00:36.8]}
65. Be5 {[%clk 0:00:14.6]} 65... Kg8 {[%clk 0:00:37]} 66. g4 {[%clk 0:00:14.3]}
66... Ra7 {[%clk 0:00:36.2]} 67. g5 {[%clk 0:00:14.5]} 67... Rf7+ {[%clk
0:00:34.9]} 68. Bf6 {[%clk 0:00:14.2]} 68... Rf8 {[%clk 0:00:35.6]} 69. Rb7
{[%clk 0:00:13.8]} 69... Ra8 {[%clk 0:00:36.5]} 70. Rc7 {[%clk 0:00:12.2]} 70...
Rb8 {[%clk 0:00:34.8]} 71. Kg6 {[%clk 0:00:12.2]} 71... Re8 {[%clk 0:00:33]} 72.
Rc2 {[%clk 0:00:12]} 72... Ra8 {[%clk 0:00:32.8]} 73. Rd2 {[%clk 0:00:11.9]}
73... Re8 {[%clk 0:00:18.2]} 74. Rh2 {[%clk 0:00:11.3]} 74... Rd8 {[%clk
0:00:19.1]} 75. Bxd8 {[%clk 0:00:09.6]} 75... Kf8 {[%clk 0:00:18.9]} 76. Bb6
{[%clk 0:00:09.3]} 76... Ke8 {[%clk 0:00:19.8]} 77. Bc5 {[%clk 0:00:08.9]} 77...
Kd7 {[%clk 0:00:20.7]} 78. Kh7 {[%clk 0:00:06.5]} 78... Ke6 {[%clk 0:00:21.6]}
79. Be3 {[%clk 0:00:07.2]} 79... Kf5 {[%clk 0:00:22.5]} 80. Rf2+ {[%clk
0:00:07.5]} 80... Kg4 {[%clk 0:00:23.4]} 81. Bd2 {[%clk 0:00:07.6]} 81... Kh3
{[%clk 0:00:24.3]} 82. g6 {[%clk 0:00:07.8]} 82... Kg4 {[%clk 0:00:25.2]} 83. g7
{[%clk 0:00:06.8]} 83... Kh5 {[%clk 0:00:26.1]} 84. Rf6 {[%clk 0:00:06.5]} 84...
Kh4 {[%clk 0:00:27]} 85. g8=Q {[%clk 0:00:05.3]} 85... Kh5 {[%clk 0:00:27.9]}
86. Rh6# {[%clk 0:00:05.4]} 1-0